{"text_format":"3","workbook":"xlsx","n_sheets":26,"sheets":["Sākums","1","2","3","4","5","6","7","8","9","10","11","12","13","14","15","16","17","18","19","20","21","22","23","24","Papildinformācija"],"not_rendered":{"images":24,"defined_names":5,"pivot_tables":19},"read":"whole","date_system":"1900"}

{"sheet":"Sākums","index":0,"n_rows":5,"n_cols":1,"rows_kept":5}
["Esiet sveicināts!\nNorādījumi ekrāna lasītājiem: kā pilnvērtīgāk izmantot rakurstabulas. Vienkārša rakurstabula sniedz jums datu kopsavilkumu, taču dažreiz ir nepieciešamas detalizētas atbildes uz konkrētiem jautājumiem. Šādā ziņā var noderēt papildu kolonnu lauku un rindu lauku pievienošana. \nNorādījumos norādīts, uz kurām šūnām naviģēt, lai izmantotu konkrētu līdzekli vai uzzinātu vairāk.\nLai sāktu, nospiediet taustiņu kombināciju CTRL+PAGE DOWN."]
["Kā pilnvērtīgāk izmantot \nrakurstabulas"]
["Vienkārša rakurstabula sniedz jums datu kopsavilkumu,taču dažreiz ir nepieciešamas \ndetalizētas atbildes uz konkrētiem jautājumiem.Šādā ziņā var noderēt papildu kolonnu \nlauku un rindu lauku pievienošana."]
["NODERĪGA INFORMĀCIJA\nVai apguvāt pirmo apmācību? Pretējā gadījumā dodieties uz Fails > Jauns un atrodiet Iepazīšanās ar rakurstabulu izveidi."]
["Lai atgrieztos sākumā, nospiediet taustiņu kombināciju CTRL+HOME. Lai sāktu darbu ar ceļvedi, nospiediet taustiņu kombināciju CTRL+ PAGE DOWN."]

{"sheet":"1","index":1,"n_rows":16,"n_cols":9,"rows_kept":16}
["Pirmajā apmācībā mēs izskaidrojām, kas ir rakurstabula. Mēs paskaidrojām arī to, kā rindas lauks iespējams izmantot kā nosacījumu, kas sadala vērtības lauks."]
["No šūnas H10 līdz šūnai I14 atrodas rakurstabula, kurā tiek apkopoti dati no šūnas B8 līdz šūnai E16. Rakurstabula ir divas kolonnas: Pircējs un Summa no Summa. Kolonnā Pircējs ir vērtības Tētis, Mamma, Daina un Gala summa; kolonnā Summa no Summa ir vērtības 220 EUR, 270 EUR, 810 EUR un 1 300 EUR. Pircējs kolonnu veido rindas lauks, un kolonnu Summa no Summa veido vērtības lauks."]
["Lai turpinātu šo apmācību, nospiediet taustiņu kombināciju CTRL+PAGE DOWN. Lai pārietu uz iepriekšējo lapu, nospiediet taustiņu kombināciju CTRL+PAGE UP."]
[]
[]
[]
[]
[null,"Datums","Pircējs","Tips","Summa"]
["Šajā piemērā parādīts, kā rindas lauks...","2017-01-01","Tētis","Dāvanas",{"v":95,"d":"95 EUR"}]
["...sadala vērtības lauku.","2017-01-15","Mamma","Pārtika",{"v":325,"d":"325 EUR"},null,null,"Pircējs","Summa no Summa"]
[null,"2017-01-17","Mamma","Biļetes",{"v":250,"d":"250 EUR"},null,null,"Tētis",{"v":220,"d":"220 EUR"}]
[null,"2017-01-21","Tētis","Pārtika",{"v":125,"d":"125 EUR"},null,null,"Daina",{"v":270,"d":"270 EUR"}]
[null,"2017-02-02","Mamma","Pārtika",{"v":235,"d":"235 EUR"},null,null,"Mamma",{"v":810,"d":"810 EUR"}]
[null,"2017-02-20","Daina","Mūzika",{"v":20,"d":"20 EUR"},null,null,"Gala summa",{"v":1300,"d":"1,300 EUR"}]
[null,"2017-02-25","Daina","Biļetes",{"v":125,"d":"125 EUR"}]
[null,"2017-02-25","Daina","Sports",{"v":125,"d":"125 EUR"}]

{"sheet":"2","index":2,"n_rows":108,"n_cols":7,"rows_kept":108}
["Tomēr, pirmo reizi aplūkojot rakurs​​​tabula, iespējams, jums būs nepieciešamas vairāk atbilžu."]
["Kad pirmo reizi aplūkojat rakurstabulu, iespējams, jums rodas tādi jautājumi kā \"Kad tika veikti šie pirkumi?\", \"Kādām lietām katrs cilvēks iztērēja naudu?\", \"Ko tik dārgu iegādājās mamma?\"."]
["Šajā piemērā no šūnas F11 līdz šūnai G15 redzama tā pati divu kolonnu rakurstabula, kas iepriekš. Kolonna Pircējs rindas lauks, un tā satur vērtības Tētis, Mamma, Daina un Gala summa; kolonna Summa no Summa ir vērtības lauks, un tā satur vērtības 220 EUR, 270 EUR, 810 EUR un 1 300 EUR. "]
["Lai turpinātu šo apmācību, nospiediet taustiņu kombināciju CTRL+PAGE DOWN. Lai pārietu uz iepriekšējo lapu, nospiediet taustiņu kombināciju CTRL+PAGE UP."]
[]
[]
[]
[]
[]
[]
[{"$nulls":5},"Pircējs","Summa no Summa"]
[{"$nulls":5},"Tētis",{"v":220,"d":"220 EUR"}]
[{"$nulls":5},"Daina",{"v":270,"d":"270 EUR"}]
[{"$nulls":5},"Mamma",{"v":810,"d":"810 EUR"}]
[{"$nulls":5},"Gala summa",{"v":1300,"d":"1,300 EUR"}]
{"$rows_empty":84}
[null,"Datums","Pircējs","Tips","Summa"]
[null,"2017-01-01","Tētis","Dāvanas",{"v":95,"d":"95 EUR"}]
[null,"2017-01-15","Mamma","Pārtika",{"v":325,"d":"325 EUR"}]
[null,"2017-01-17","Mamma","Biļetes",{"v":250,"d":"250 EUR"}]
[null,"2017-01-21","Tētis","Pārtika",{"v":125,"d":"125 EUR"}]
[null,"2017-02-02","Mamma","Pārtika",{"v":235,"d":"235 EUR"}]
[null,"2017-02-20","Daina","Mūzika",{"v":20,"d":"20 EUR"}]
[null,"2017-02-25","Daina","Biļetes",{"v":125,"d":"125 EUR"}]
[null,"2017-02-25","Daina","Sports",{"v":125,"d":"125 EUR"}]

{"sheet":"3","index":3,"n_rows":108,"n_cols":7,"rows_kept":108}
["Tie visi ir labi jautājumi, taču pašreiz pievērsīsimies tikai vienam no tiem."]
["Kādām lietām katrs cilvēks iztērēja naudu?"]
["Jūsu zināšanai no šūnas F11 līdz šūnai G15 ir redzama tā pati divu kolonnu rakurstabula, kas iepriekš. Kolonna Pircējs rindas lauks, un tā satur vērtības Tētis, Mamma, Daina un Gala summa; kolonna Summa no Summa ir vērtības lauks, un tā satur vērtības 220 EUR, 270 EUR, 810 EUR un 1 300 EUR. "]
["Lai turpinātu šo apmācību, nospiediet taustiņu kombināciju CTRL+PAGE DOWN. Lai pārietu uz iepriekšējo lapu, nospiediet taustiņu kombināciju CTRL+PAGE UP."]
[]
[]
[]
[]
[]
[]
[{"$nulls":5},"Pircējs","Summa no Summa"]
[{"$nulls":5},"Tētis",{"v":220,"d":"220 EUR"}]
[{"$nulls":5},"Daina",{"v":270,"d":"270 EUR"}]
[{"$nulls":5},"Mamma",{"v":810,"d":"810 EUR"}]
[{"$nulls":5},"Gala summa",{"v":1300,"d":"1,300 EUR"}]
{"$rows_empty":84}
[null,"Datums","Pircējs","Tips","Summa"]
[null,"2017-01-01","Tētis","Dāvanas",{"v":95,"d":"95 EUR"}]
[null,"2017-01-15","Mamma","Pārtika",{"v":325,"d":"325 EUR"}]
[null,"2017-01-17","Mamma","Biļetes",{"v":250,"d":"250 EUR"}]
[null,"2017-01-21","Tētis","Pārtika",{"v":125,"d":"125 EUR"}]
[null,"2017-02-02","Mamma","Pārtika",{"v":235,"d":"235 EUR"}]
[null,"2017-02-20","Daina","Mūzika",{"v":20,"d":"20 EUR"}]
[null,"2017-02-25","Daina","Biļetes",{"v":125,"d":"125 EUR"}]
[null,"2017-02-25","Daina","Sports",{"v":125,"d":"125 EUR"}]

{"sheet":"4","index":4,"n_rows":108,"n_cols":9,"rows_kept":108}
["Pēdējais uzdotais jautājums bija \"Kādām lietām katrs cilvēks iztērēja naudu?\""]
["Mēs atbildējām uz šo jautājumu, pievienojot kolonnas lauks Tips. Tāpēc rakurs​​​tabula tagad ir piecas jaunas kolonnas, kas rāda, kāda tipa lietas iegādājās katrs cilvēks. "]
["Mūsu jaunā rakurstabula tagad aizņem vietu no šūnas C10 līdz šūnai I15, un tajā ir kolonnas Pircējs, Pārtika, Mūzika, Sports, Biļetes, Dāvanas un Gala summa. Pircējs un Gala summa ir tādas pašas vērtības, kā iepriekš, un jaunās informācijas kolonnas atrodas starp tām."]
["Lai turpinātu šo apmācību, nospiediet taustiņu kombināciju CTRL+PAGE DOWN. Lai pārietu uz iepriekšējo lapu, nospiediet taustiņu kombināciju CTRL+PAGE UP."]
[]
[]
[]
[]
[]
[null,null,"Summa no Summa","Tips"]
[null,null,"Pircējs","Pārtika","Mūzika","Sports","Biļetes","Dāvanas","Gala summa"]
[null,null,"Tētis",{"v":125,"d":"125 EUR"},{"$nulls":3},{"v":95,"d":"95 EUR"},{"v":220,"d":"220 EUR"}]
[null,null,"Daina",null,{"v":20,"d":"20 EUR"},{"v":125,"d":"125 EUR"},{"v":125,"d":"125 EUR"},null,{"v":270,"d":"270 EUR"}]
[null,null,"Mamma",{"v":560,"d":"560 EUR"},null,null,{"v":250,"d":"250 EUR"},null,{"v":810,"d":"810 EUR"}]
[null,null,"Gala summa",{"v":685,"d":"685 EUR"},{"v":20,"d":"20 EUR"},{"v":125,"d":"125 EUR"},{"v":375,"d":"375 EUR"},{"v":95,"d":"95 EUR"},{"v":1300,"d":"1,300 EUR"}]
{"$rows_empty":84}
[null,"Datums","Pircējs","Tips","Summa"]
[null,"2017-01-01","Tētis","Dāvanas",{"v":95,"d":"95 EUR"}]
[null,"2017-01-15","Mamma","Pārtika",{"v":325,"d":"325 EUR"}]
[null,"2017-01-17","Mamma","Biļetes",{"v":250,"d":"250 EUR"}]
[null,"2017-01-21","Tētis","Pārtika",{"v":125,"d":"125 EUR"}]
[null,"2017-02-02","Mamma","Pārtika",{"v":235,"d":"235 EUR"}]
[null,"2017-02-20","Daina","Mūzika",{"v":20,"d":"20 EUR"}]
[null,"2017-02-25","Daina","Biļetes",{"v":125,"d":"125 EUR"}]
[null,"2017-02-25","Daina","Sports",{"v":125,"d":"125 EUR"}]

{"sheet":"5","index":5,"n_rows":108,"n_cols":9,"rows_kept":108}
["Ja rakurs​​​tabula ir grūti saprast, rīkojieties šādi: Lasiet no kreisās malas, pēc tam no augšas un lejup. Šajā piemērā tētis ir šūnā C12, pārtika par 125 EUR šūnā D12, dāvanas par 95 EUR šūnā E12 un gala summa 220 EUR šūnā I12. 13. un 14. rindā redzama informācija par Daina un mamma, bet 15. rindā redzama gala summa."]
["Lai turpinātu šo apmācību, nospiediet taustiņu kombināciju CTRL+PAGE DOWN. Lai pārietu uz iepriekšējo lapu, nospiediet taustiņu kombināciju CTRL+PAGE UP."]
{"$rows_empty":7}
[null,null,"Summa no Summa","Tips"]
[null,null,"Pircējs","Pārtika","Dāvanas","Mūzika","Sports","Biļetes","Gala summa"]
[null,null,"Tētis",{"v":125,"d":"125 EUR"},{"v":95,"d":"95 EUR"},{"$nulls":3},{"v":220,"d":"220 EUR"}]
[null,null,"Daina",null,null,{"v":20,"d":"20 EUR"},{"v":125,"d":"125 EUR"},{"v":125,"d":"125 EUR"},{"v":270,"d":"270 EUR"}]
[null,null,"Mamma",{"v":560,"d":"560 EUR"},{"$nulls":3},{"v":250,"d":"250 EUR"},{"v":810,"d":"810 EUR"}]
[null,null,"Gala summa",{"v":685,"d":"685 EUR"},{"v":95,"d":"95 EUR"},{"v":20,"d":"20 EUR"},{"v":125,"d":"125 EUR"},{"v":375,"d":"375 EUR"},{"v":1300,"d":"1,300 EUR"}]
{"$rows_empty":84}
[null,"Datums","Pircējs","Tips","Summa"]
[null,"2017-01-01","Tētis","Dāvanas",{"v":95,"d":"95 EUR"}]
[null,"2017-01-15","Mamma","Pārtika",{"v":325,"d":"325 EUR"}]
[null,"2017-01-17","Mamma","Biļetes",{"v":250,"d":"250 EUR"}]
[null,"2017-01-21","Tētis","Pārtika",{"v":125,"d":"125 EUR"}]
[null,"2017-02-02","Mamma","Pārtika",{"v":235,"d":"235 EUR"}]
[null,"2017-02-20","Daina","Mūzika",{"v":20,"d":"20 EUR"}]
[null,"2017-02-25","Daina","Biļetes",{"v":125,"d":"125 EUR"}]
[null,"2017-02-25","Daina","Sports",{"v":125,"d":"125 EUR"}]

{"sheet":"6","index":6,"n_rows":3,"n_cols":1,"rows_kept":3}
["Neveiciet šo tagad, bet pēc dažu darbību izpildes jums būs jāstrādā ar rakurs​​​tabula. Vispirms jāievieto detalizētā informācija kolonnas laukā. Izdariet to, ievietojot lauku Tips apgabalā Kolonnas lauks."]
["Rakurstabulas lauki saraksta attēlā redzams bultiņas kursors, velkot lauku Tips uz apgabalu Kolonnas."]
["Lai turpinātu šo apmācību, nospiediet taustiņu kombināciju CTRL+PAGE DOWN. Lai pārietu uz iepriekšējo lapu, nospiediet taustiņu kombināciju CTRL+PAGE UP."]

{"sheet":"7","index":7,"n_rows":108,"n_cols":8,"rows_kept":108}
["1. Šajā piemērā esošais rakurstabulas apgabals atrodas šūnās no B13 līdz C17. Pārejiet uz kādu no šīm šūnām."]
["2. Nospiediet taustiņu kombināciju ALT un JZ, L1, lai atvērtu rakurstabulas lauki sarakstu. Fokuss pēc noklusējuma atradīsies meklēt tekstlodziņā: \"Meklēt\" rediģēšana"]
["3. Nospiediet bulttaustiņus, lai atlasītu lauku Tips. Pēc atlasīšanas nospiediet atstarpes taustiņu, lai pievienotu lauku Tips rindas apgabalam. "]
["4. Nospiediet tabulēšanas taustiņu, lai atlasītu tips lauku. Nospiediet taustiņu Enter un pēc tam spiediet bulttaustiņus, lai atlasītu opciju Pārvietot uz kolonnu etiķetēm, un nospiediet taustiņu Enter, lai pievienotu tips lauku kolonnas. Nospiediet taustiņu kombināciju ALT+JZ+L1, lai atvērtu rakurstabulas lauki rūti."]
["Lai turpinātu šo apmācību, nospiediet taustiņu kombināciju CTRL+PAGE DOWN. Lai pārietu uz iepriekšējo lapu, nospiediet taustiņu kombināciju CTRL+PAGE UP."]
[]
[]
[]
[{"$nulls":7},{"$f":"IF(AND($B$14=\"Pircējs\",$H$17=810),\"Lieliski! Jūs ievietojāt pirmās\",\" \")","v":" "}]
[{"$nulls":7},{"$f":"IF(AND($B$14=\"Pircējs\",$H$17=810),\"kolonnas lauku. Noklikšķiniet\",\" \")","v":" "}]
[{"$nulls":7},{"$f":"IF(AND($B$14=\"Pircējs\",$H$17=810),\"uz Tālāk, lai turpinātu...\",\" \")","v":" "}]
[]
[null,"Pircējs","Summa no Summa"]
[null,"Tētis",{"v":220,"d":"220 EUR"}]
[null,"Daina",{"v":270,"d":"270 EUR"}]
[null,"Mamma",{"v":810,"d":"810 EUR"}]
[null,"Gala summa",{"v":1300,"d":"1,300 EUR"}]
{"$rows_empty":82}
[null,"Datums","Pircējs","Tips","Summa"]
[null,"2017-01-01","Tētis","Dāvanas",{"v":95,"d":"95 EUR"}]
[null,"2017-01-15","Mamma","Pārtika",{"v":325,"d":"325 EUR"}]
[null,"2017-01-17","Mamma","Biļetes",{"v":250,"d":"250 EUR"}]
[null,"2017-01-21","Tētis","Pārtika",{"v":125,"d":"125 EUR"}]
[null,"2017-02-02","Mamma","Pārtika",{"v":235,"d":"235 EUR"}]
[null,"2017-02-20","Daina","Mūzika",{"v":20,"d":"20 EUR"}]
[null,"2017-02-25","Daina","Biļetes",{"v":125,"d":"125 EUR"}]
[null,"2017-02-25","Daina","Sports",{"v":125,"d":"125 EUR"}]

{"sheet":"8","index":8,"n_rows":108,"n_cols":9,"rows_kept":108}
["Aplūkosim tikko izveidoto rakurs​​​tabula, taču šoreiz esam pievienojuši dažas īpašas krāsas, lai nošķirtu rindu, kolonnu un vērtību laukus."]
["Rindas lauks aizņem vietu no šūnas C10 līdz šūnai C13, un tas ir ēnots dzeltenā krāsā."]
["Kolonnas lauks aizņem vietu no šūnas D9 līdz šūnai H10, un tas ir ēnots oranžā krāsā."]
["Vērtības lauks aizņem vietu no šūnas D11 līdz šūnai H13, un tas ir ēnots zilā krāsā."]
["Lai turpinātu šo apmācību, nospiediet taustiņu kombināciju CTRL+PAGE DOWN. Lai pārietu uz iepriekšējo lapu, nospiediet taustiņu kombināciju CTRL+PAGE UP."]
[]
[]
[]
[null,null,"Summa no Summa","Tips"]
[null,null,"Pircējs","Pārtika","Dāvanas","Mūzika","Sports","Biļetes","Gala summa"]
[null,null,"Tētis",{"v":125,"d":"125 EUR"},{"v":95,"d":"95 EUR"},{"$nulls":3},{"v":220,"d":"220 EUR"}]
[null,null,"Daina",null,null,{"v":20,"d":"20 EUR"},{"v":125,"d":"125 EUR"},{"v":125,"d":"125 EUR"},{"v":270,"d":"270 EUR"}]
[null,null,"Mamma",{"v":560,"d":"560 EUR"},{"$nulls":3},{"v":250,"d":"250 EUR"},{"v":810,"d":"810 EUR"}]
[null,null,"Gala summa",{"v":685,"d":"685 EUR"},{"v":95,"d":"95 EUR"},{"v":20,"d":"20 EUR"},{"v":125,"d":"125 EUR"},{"v":375,"d":"375 EUR"},{"v":1300,"d":"1,300 EUR"}]
{"$rows_empty":85}
[null,"Datums","Pircējs","Tips","Summa"]
[null,"2017-01-01","Tētis","Dāvanas",{"v":95,"d":"95 EUR"}]
[null,"2017-01-15","Mamma","Pārtika",{"v":325,"d":"325 EUR"}]
[null,"2017-01-17","Mamma","Biļetes",{"v":250,"d":"250 EUR"}]
[null,"2017-01-21","Tētis","Pārtika",{"v":125,"d":"125 EUR"}]
[null,"2017-02-02","Mamma","Pārtika",{"v":235,"d":"235 EUR"}]
[null,"2017-02-20","Daina","Mūzika",{"v":20,"d":"20 EUR"}]
[null,"2017-02-25","Daina","Biļetes",{"v":125,"d":"125 EUR"}]
[null,"2017-02-25","Daina","Sports",{"v":125,"d":"125 EUR"}]

{"sheet":"9","index":9,"n_rows":3,"n_cols":1,"rows_kept":3}
["Lūk, vēl viens veids, kā to uzlūkot. Rindas lauks atrodas pa kreisi, un kolonnas lauks atrodas augšā. Katrā laukā ir sniegts nosacījums vērtības lauks, kas tos saskaita."]
["Attēlā redzams 4 sadaļu taisnstūra apgabals ar rindas lauks apakšējā kreisajā pusē dzeltenā krāsā, kolonnas lauks augšējā labajā pusē oranžā krāsā un vērtības lauks apakšējā labajā pusē zilā krāsā."]
["Lai turpinātu šo apmācību, nospiediet taustiņu kombināciju CTRL+PAGE DOWN. Lai pārietu uz iepriekšējo lapu, nospiediet taustiņu kombināciju CTRL+PAGE UP."]

{"sheet":"10","index":10,"n_rows":3,"n_cols":1,"rows_kept":3}
["Kad izmantojat lauku sarakstu, aplūkojiet to šādi. Rindas lauks atrodas pa kreisi, un kolonnas lauks atrodas augšā. Katrā laukā ir sniegts nosacījums vērtības lauks, kas tos saskaita."]
["Attēlā redzams rakurstabulas lauki saraksts ar rindas lauks apakšējā kreisajā pusē dzeltenā krāsā, kolonnas lauks augšējā labajā pusē oranžā krāsā un vērtības lauks apakšējā labajā pusē zilā krāsā."]
["Lai turpinātu šo apmācību, nospiediet taustiņu kombināciju CTRL+PAGE DOWN. Lai pārietu uz iepriekšējo lapu, nospiediet taustiņu kombināciju CTRL+PAGE UP."]

{"sheet":"11","index":11,"n_rows":121,"n_cols":24,"rows_kept":121}
["Ņemiet vērā tālāk minēto. Ja kolonnas lauks pievieno lielu skaitu kolonnu rakurs​​​tabula, tā kļūs ļoti plata. "]
["Šajā piemērā rakurstabula atrodas diapazonā no šūnas C10 līdz šūnai X15, jo kolonnas lauks pievienoja 20 jaunas kolonnas. Tas ir liels skaits kolonnu! Tāpēc būs ilgi jāritina..."]
["Lai turpinātu šo apmācību, nospiediet taustiņu kombināciju CTRL+PAGE DOWN. Lai pārietu uz iepriekšējo lapu, nospiediet taustiņu kombināciju CTRL+PAGE UP."]
[]
[]
[]
[]
[]
[]
[null,null,"Summa no Summa","Tips"]
[null,null,"Pircējs","Apģērbs","Auto apdrošināšana","Autostāvvieta","Biļetes","Degviela","Elektrība","Elektronika","Ēšana","Grāmatas","Kluba ieejas maksa","Lidojums","Mājokļa apdrošināšana","Medikamenti","Mūzika","Mūzikas nodarbības","Nodokļi","Pārtika","Sports","Veselības apdrošināšana","Zobārsts","Gala summa"]
[null,null,"Tētis",{"$nulls":10},{"v":500,"d":"500 EUR"},{"$nulls":4},{"v":500,"d":"500 EUR"},null,{"v":1000,"d":"1,000 EUR"},null,null,{"v":2000,"d":"2,000 EUR"}]
[null,null,"Daina",{"v":125,"d":"125 EUR"},null,{"v":20,"d":"20 EUR"},{"v":125,"d":"125 EUR"},null,null,{"v":125,"d":"125 EUR"},{"v":20,"d":"20 EUR"},{"v":250,"d":"250 EUR"},{"$nulls":4},{"v":20,"d":"20 EUR"},{"v":250,"d":"250 EUR"},{"$nulls":5},{"v":935,"d":"935 EUR"}]
[null,null,"Mamma",null,{"v":74,"d":"74 EUR"},null,null,{"v":74,"d":"74 EUR"},{"v":70,"d":"70 EUR"},{"$nulls":3},{"v":125,"d":"125 EUR"},null,{"v":235,"d":"235 EUR"},{"v":74,"d":"74 EUR"},{"$nulls":3},{"v":470,"d":"470 EUR"},null,{"v":70,"d":"70 EUR"},{"v":235,"d":"235 EUR"},{"v":1427,"d":"1,427 EUR"}]
[null,null,"Gala summa",{"v":125,"d":"125 EUR"},{"v":74,"d":"74 EUR"},{"v":20,"d":"20 EUR"},{"v":125,"d":"125 EUR"},{"v":74,"d":"74 EUR"},{"v":70,"d":"70 EUR"},{"v":125,"d":"125 EUR"},{"v":20,"d":"20 EUR"},{"v":250,"d":"250 EUR"},{"v":125,"d":"125 EUR"},{"v":500,"d":"500 EUR"},{"v":235,"d":"235 EUR"},{"v":74,"d":"74 EUR"},{"v":20,"d":"20 EUR"},{"v":250,"d":"250 EUR"},{"v":500,"d":"500 EUR"},{"v":470,"d":"470 EUR"},{"v":1000,"d":"1,000 EUR"},{"v":70,"d":"70 EUR"},{"v":235,"d":"235 EUR"},{"v":4362,"d":"4,362 EUR"}]
{"$rows_empty":84}
[null,"Datums","Pircējs","Tips","Summa"]
[null,"2017-01-17","Tētis","Sports",{"v":1000,"d":"1,000 EUR"}]
[null,"2017-01-17","Tētis","Lidojums",{"v":500,"d":"500 EUR"}]
[null,"2017-01-17","Tētis","Nodokļi",{"v":500,"d":"500 EUR"}]
[null,"2017-02-20","Daina","Mūzika",{"v":20,"d":"20 EUR"}]
[null,"2017-02-25","Daina","Biļetes",{"v":125,"d":"125 EUR"}]
[null,"2017-01-21","Daina","Grāmatas",{"v":250,"d":"250 EUR"}]
[null,"2017-02-20","Daina","Ēšana",{"v":20,"d":"20 EUR"}]
[null,"2017-02-25","Daina","Apģērbs",{"v":125,"d":"125 EUR"}]
[null,"2017-01-21","Daina","Mūzikas nodarbības",{"v":250,"d":"250 EUR"}]
[null,"2017-02-20","Daina","Autostāvvieta",{"v":20,"d":"20 EUR"}]
[null,"2017-02-25","Daina","Elektronika",{"v":125,"d":"125 EUR"}]
[null,"2017-01-01","Mamma","Degviela",{"v":74,"d":"74 EUR"}]
[null,"2017-01-15","Mamma","Pārtika",{"v":235,"d":"235 EUR"}]
[null,"2017-01-21","Mamma","Kluba ieejas maksa",{"v":125,"d":"125 EUR"}]
[null,"2017-02-02","Mamma","Pārtika",{"v":235,"d":"235 EUR"}]
[null,"2017-01-01","Mamma","Medikamenti",{"v":74,"d":"74 EUR"}]
[null,"2017-01-15","Mamma","Elektrība",{"v":70,"d":"70 EUR"}]
[null,"2017-02-02","Mamma","Zobārsts",{"v":235,"d":"235 EUR"}]
[null,"2017-01-01","Mamma","Auto apdrošināšana",{"v":74,"d":"74 EUR"}]
[null,"2017-01-15","Mamma","Veselības apdrošināšana",{"v":70,"d":"70 EUR"}]
[null,"2017-02-02","Mamma","Mājokļa apdrošināšana",{"v":235,"d":"235 EUR"}]

{"sheet":"12","index":12,"n_rows":119,"n_cols":5,"rows_kept":119}
["Ļoti platām rakurstabulām ir alternatīva: Varat izmantot otrās rindas lauks tā vietā. Otrās rindas lauks tiek parādīts ar atkāpi zem pirmās rindas lauks."]
["Šajā piemērā rakurstabula atrodas diapazonā no šūnas D8 līdz šūnai E32. Kolonnā D kā pirmās rindas lauki redzams Tētis, Daina un Mamma. Zem tiem atrodas otrās rindas lauki ar tādiem vienumiem kā Sports, Lidojums, Ēšana utt."]
["NODERĪGA INFORMĀCIJA\nOtrās rindas lauks rada vertikāli, nevis horizontāli vērstu rakurstabula. Atsevišķiem cilvēkiem rakurstabulas ir vieglāk nolasāmas, jo nav nepieciešams daudz ritināt no sāna uz sānu."]
["EXCEL RUNA\nDažkārt cilvēki otrās rindas lauks dēvē par \"sekundārās rindas lauks\"."]
["Lai turpinātu šo apmācību, nospiediet taustiņu kombināciju CTRL+PAGE DOWN. Lai pārietu uz iepriekšējo lapu, nospiediet taustiņu kombināciju CTRL+PAGE UP."]
[]
[]
[{"$nulls":3},"Rindu etiķetes","Summa no Summa"]
[{"$nulls":3},"Tētis",{"v":2000,"d":"2,000 EUR"}]
[{"$nulls":3},"Lidojums",{"v":500,"d":"500 EUR"}]
[{"$nulls":3},"Nodokļi",{"v":500,"d":"500 EUR"}]
[{"$nulls":3},"Sports",{"v":1000,"d":"1,000 EUR"}]
[{"$nulls":3},"Daina",{"v":935,"d":"935 EUR"}]
[{"$nulls":3},"Apģērbs",{"v":125,"d":"125 EUR"}]
[{"$nulls":3},"Autostāvvieta",{"v":20,"d":"20 EUR"}]
[{"$nulls":3},"Biļetes",{"v":125,"d":"125 EUR"}]
[{"$nulls":3},"Elektronika",{"v":125,"d":"125 EUR"}]
[{"$nulls":3},"Ēšana",{"v":20,"d":"20 EUR"}]
[{"$nulls":3},"Grāmatas",{"v":250,"d":"250 EUR"}]
[{"$nulls":3},"Mūzika",{"v":20,"d":"20 EUR"}]
[{"$nulls":3},"Mūzikas nodarbības",{"v":250,"d":"250 EUR"}]
[{"$nulls":3},"Mamma",{"v":1427,"d":"1,427 EUR"}]
[{"$nulls":3},"Auto apdrošināšana",{"v":74,"d":"74 EUR"}]
[{"$nulls":3},"Degviela",{"v":74,"d":"74 EUR"}]
[{"$nulls":3},"Elektrība",{"v":70,"d":"70 EUR"}]
[{"$nulls":3},"Kluba ieejas maksa",{"v":125,"d":"125 EUR"}]
[{"$nulls":3},"Mājokļa apdrošināšana",{"v":235,"d":"235 EUR"}]
[{"$nulls":3},"Medikamenti",{"v":74,"d":"74 EUR"}]
[{"$nulls":3},"Pārtika",{"v":470,"d":"470 EUR"}]
[{"$nulls":3},"Veselības apdrošināšana",{"v":70,"d":"70 EUR"}]
[{"$nulls":3},"Zobārsts",{"v":235,"d":"235 EUR"}]
[{"$nulls":3},"Gala summa",{"v":4362,"d":"4,362 EUR"}]
{"$rows_empty":65}
[null,"Datums","Pircējs","Tips","Summa"]
[null,"2017-01-17","Tētis","Sports",{"v":1000,"d":"1,000 EUR"}]
[null,"2017-01-17","Tētis","Lidojums",{"v":500,"d":"500 EUR"}]
[null,"2017-01-17","Tētis","Nodokļi",{"v":500,"d":"500 EUR"}]
[null,"2017-02-20","Daina","Mūzika",{"v":20,"d":"20 EUR"}]
[null,"2017-02-25","Daina","Biļetes",{"v":125,"d":"125 EUR"}]
[null,"2017-01-21","Daina","Grāmatas",{"v":250,"d":"250 EUR"}]
[null,"2017-02-20","Daina","Ēšana",{"v":20,"d":"20 EUR"}]
[null,"2017-02-25","Daina","Apģērbs",{"v":125,"d":"125 EUR"}]
[null,"2017-01-21","Daina","Mūzikas nodarbības",{"v":250,"d":"250 EUR"}]
[null,"2017-02-20","Daina","Autostāvvieta",{"v":20,"d":"20 EUR"}]
[null,"2017-02-25","Daina","Elektronika",{"v":125,"d":"125 EUR"}]
[null,"2017-01-01","Mamma","Degviela",{"v":74,"d":"74 EUR"}]
[null,"2017-01-15","Mamma","Pārtika",{"v":235,"d":"235 EUR"}]
[null,"2017-01-21","Mamma","Kluba ieejas maksa",{"v":125,"d":"125 EUR"}]
[null,"2017-02-02","Mamma","Pārtika",{"v":235,"d":"235 EUR"}]
[null,"2017-01-01","Mamma","Medikamenti",{"v":74,"d":"74 EUR"}]
[null,"2017-01-15","Mamma","Elektrība",{"v":70,"d":"70 EUR"}]
[null,"2017-02-02","Mamma","Zobārsts",{"v":235,"d":"235 EUR"}]
[null,"2017-01-01","Mamma","Auto apdrošināšana",{"v":74,"d":"74 EUR"}]
[null,"2017-01-15","Mamma","Veselības apdrošināšana",{"v":70,"d":"70 EUR"}]
[null,"2017-02-02","Mamma","Mājokļa apdrošināšana",{"v":235,"d":"235 EUR"}]

{"sheet":"13","index":13,"n_rows":3,"n_cols":1,"rows_kept":3}
["Nākamajā lapā pievienojiet otru rindas lauks. Varat to izdarīt, velkot lauku Tips zem lauka Pircējs rindu laukā."]
["Rakurstabulas lauki saraksta attēlā redzams bultiņas kursors, velkot lauku Tips uz rindas apgabalu."]
["Lai turpinātu šo apmācību, nospiediet taustiņu kombināciju CTRL+PAGE DOWN. Lai pārietu uz iepriekšējo lapu, nospiediet taustiņu kombināciju CTRL+PAGE UP."]

{"sheet":"14","index":14,"n_rows":122,"n_cols":7,"rows_kept":122}
["1. Šajā piemērā esošais rakurstabulas apgabals atrodas šūnās no B13 līdz C17. Pārejiet uz kādu no šīm šūnām. "]
["2. Nospiediet taustiņu kombināciju ALT un JZ, L1, lai atvērtu rakurstabulas lauki sarakstu. Fokuss pēc noklusējuma atradīsies meklēšanas tekstlodziņā: “ierakstiet meklējamos vārdus” rediģēšanai. Nerakstiet neko, tikai vienu reizi nospiediet tabulēšanas taustiņu. Piezīme. Ja lauku saraksts netiek atvērts, vēlreiz nospiediet taustiņu kombināciju ALT+JZ, L1."]
["3. Spiežot bultiņas, pārvietojieties uz lauku Tips. Lai lauku Tips pievienotu apgabalā Rindas, nospiediet atstarpes taustiņu. "]
["4. Nospiediet taustiņu ESC, lai izietu no rakurstabulas lauki rūts. "]
["Lai turpinātu šo apmācību, nospiediet taustiņu kombināciju CTRL+PAGE DOWN. Lai pārietu uz iepriekšējo lapu, nospiediet taustiņu kombināciju CTRL+PAGE UP.",{"$nulls":5},{"$f":"IF(AND($B$15=\"Lidojums\",$C$36=235),\"Jauki. Jūs pievienojāt otru\",\" \")","v":" "}]
[{"$nulls":6},{"$f":"IF(AND($B$15=\"Lidojums\",$C$36=235),\"rindas lauku rakurstabulā.\",\" \")","v":" "}]
[{"$nulls":6},{"$f":"IF(AND($B$15=\"Lidojums\",$C$36=235),\"Ritiniet uz leju un \",\" \")","v":" "}]
[{"$nulls":6},{"$f":"IF(AND($B$15=\"Lidojums\",$C$36=235),\"noklikšķiniet uz Tālāk...\",\" \")","v":" "}]
[]
[]
[]
[]
[null,"Rindu etiķetes","Summa no Summa"]
[null,"Tētis",{"v":2000,"d":"2,000 EUR"}]
[null,"Daina",{"v":935,"d":"935 EUR"}]
[null,"Mamma",{"v":1427,"d":"1,427 EUR"}]
[null,"Gala summa",{"v":4362,"d":"4,362 EUR"}]
{"$rows_empty":83}
[null,"Datums","Pircējs","Tips","Summa"]
[null,"2017-01-17","Tētis","Sports",{"v":1000,"d":"1,000 EUR"}]
[null,"2017-01-17","Tētis","Lidojums",{"v":500,"d":"500 EUR"}]
[null,"2017-01-17","Tētis","Nodokļi",{"v":500,"d":"500 EUR"}]
[null,"2017-02-20","Daina","Mūzika",{"v":20,"d":"20 EUR"}]
[null,"2017-02-25","Daina","Biļetes",{"v":125,"d":"125 EUR"}]
[null,"2017-01-21","Daina","Grāmatas",{"v":250,"d":"250 EUR"}]
[null,"2017-02-20","Daina","Ēšana",{"v":20,"d":"20 EUR"}]
[null,"2017-02-25","Daina","Apģērbs",{"v":125,"d":"125 EUR"}]
[null,"2017-01-21","Daina","Mūzikas nodarbības",{"v":250,"d":"250 EUR"}]
[null,"2017-02-20","Daina","Autostāvvieta",{"v":20,"d":"20 EUR"}]
[null,"2017-02-25","Daina","Elektronika",{"v":125,"d":"125 EUR"}]
[null,"2017-01-01","Mamma","Degviela",{"v":74,"d":"74 EUR"}]
[null,"2017-01-15","Mamma","Pārtika",{"v":235,"d":"235 EUR"}]
[null,"2017-01-21","Mamma","Kluba ieejas maksa",{"v":125,"d":"125 EUR"}]
[null,"2017-02-02","Mamma","Pārtika",{"v":235,"d":"235 EUR"}]
[null,"2017-01-01","Mamma","Medikamenti",{"v":74,"d":"74 EUR"}]
[null,"2017-01-15","Mamma","Elektrība",{"v":70,"d":"70 EUR"}]
[null,"2017-02-02","Mamma","Zobārsts",{"v":235,"d":"235 EUR"}]
[null,"2017-01-01","Mamma","Auto apdrošināšana",{"v":74,"d":"74 EUR"}]
[null,"2017-01-15","Mamma","Veselības apdrošināšana",{"v":70,"d":"70 EUR"}]
[null,"2017-02-02","Mamma","Mājokļa apdrošināšana",{"v":235,"d":"235 EUR"}]

{"sheet":"15","index":15,"n_rows":121,"n_cols":7,"rows_kept":121}
["Ja vēlaties padarīt rakurstabula vienkāršāku, varat sakļaut datus otrajā rindā uz augšu un noslēpt. "]
["Šajā piemērā redzamā rakurstabula diapazonā no šūnas F7 līdz G31. Atlasiet šūnu F8, lai izvēlētos pirmās rindas lauks tētis. Pēc tam nospiediet taustiņu kombināciju Alt+JZ > V, lai izvērstu otro lauku, vai taustiņu S, lai to sakļautu."]
["Lai turpinātu šo apmācību, nospiediet taustiņu kombināciju CTRL+PAGE DOWN. Lai pārietu uz iepriekšējo lapu, nospiediet taustiņu kombināciju CTRL+PAGE UP."]
[]
[]
[{"$nulls":5},{"$f":"IF(AND($F$9=\"Daina\",$G$9=935),\"Jauki.\",\" \")","v":" "}]
[{"$nulls":5},"Rindu etiķetes","Summa no Summa"]
[{"$nulls":5},"Tētis",{"v":2000,"d":"2,000 EUR"}]
[{"$nulls":5},"Lidojums",{"v":500,"d":"500 EUR"}]
[{"$nulls":5},"Nodokļi",{"v":500,"d":"500 EUR"}]
[{"$nulls":5},"Sports",{"v":1000,"d":"1,000 EUR"}]
[{"$nulls":5},"Daina",{"v":935,"d":"935 EUR"}]
[{"$nulls":5},"Apģērbs",{"v":125,"d":"125 EUR"}]
[{"$nulls":5},"Autostāvvieta",{"v":20,"d":"20 EUR"}]
[{"$nulls":5},"Biļetes",{"v":125,"d":"125 EUR"}]
[{"$nulls":5},"Elektronika",{"v":125,"d":"125 EUR"}]
[{"$nulls":5},"Ēšana",{"v":20,"d":"20 EUR"}]
[{"$nulls":5},"Grāmatas",{"v":250,"d":"250 EUR"}]
[{"$nulls":5},"Mūzika",{"v":20,"d":"20 EUR"}]
[{"$nulls":5},"Mūzikas nodarbības",{"v":250,"d":"250 EUR"}]
[{"$nulls":5},"Mamma",{"v":1427,"d":"1,427 EUR"}]
[{"$nulls":5},"Auto apdrošināšana",{"v":74,"d":"74 EUR"}]
[{"$nulls":5},"Degviela",{"v":74,"d":"74 EUR"}]
[{"$nulls":5},"Elektrība",{"v":70,"d":"70 EUR"}]
[{"$nulls":5},"Kluba ieejas maksa",{"v":125,"d":"125 EUR"}]
[{"$nulls":5},"Mājokļa apdrošināšana",{"v":235,"d":"235 EUR"}]
[{"$nulls":5},"Medikamenti",{"v":74,"d":"74 EUR"}]
[{"$nulls":5},"Pārtika",{"v":470,"d":"470 EUR"}]
[{"$nulls":5},"Veselības apdrošināšana",{"v":70,"d":"70 EUR"}]
[{"$nulls":5},"Zobārsts",{"v":235,"d":"235 EUR"}]
[{"$nulls":5},"Gala summa",{"v":4362,"d":"4,362 EUR"}]
{"$rows_empty":68}
[null,"Datums","Pircējs","Tips","Summa"]
[null,"2017-01-17","Tētis","Sports",{"v":1000,"d":"1,000 EUR"}]
[null,"2017-01-17","Tētis","Lidojums",{"v":500,"d":"500 EUR"}]
[null,"2017-01-17","Tētis","Nodokļi",{"v":500,"d":"500 EUR"}]
[null,"2017-02-20","Daina","Mūzika",{"v":20,"d":"20 EUR"}]
[null,"2017-02-25","Daina","Biļetes",{"v":125,"d":"125 EUR"}]
[null,"2017-01-21","Daina","Grāmatas",{"v":250,"d":"250 EUR"}]
[null,"2017-02-20","Daina","Ēšana",{"v":20,"d":"20 EUR"}]
[null,"2017-02-25","Daina","Apģērbs",{"v":125,"d":"125 EUR"}]
[null,"2017-01-21","Daina","Mūzikas nodarbības",{"v":250,"d":"250 EUR"}]
[null,"2017-02-20","Daina","Autostāvvieta",{"v":20,"d":"20 EUR"}]
[null,"2017-02-25","Daina","Elektronika",{"v":125,"d":"125 EUR"}]
[null,"2017-01-01","Mamma","Degviela",{"v":74,"d":"74 EUR"}]
[null,"2017-01-15","Mamma","Pārtika",{"v":235,"d":"235 EUR"}]
[null,"2017-01-21","Mamma","Kluba ieejas maksa",{"v":125,"d":"125 EUR"}]
[null,"2017-02-02","Mamma","Pārtika",{"v":235,"d":"235 EUR"}]
[null,"2017-01-01","Mamma","Medikamenti",{"v":74,"d":"74 EUR"}]
[null,"2017-01-15","Mamma","Elektrība",{"v":70,"d":"70 EUR"}]
[null,"2017-02-02","Mamma","Zobārsts",{"v":235,"d":"235 EUR"}]
[null,"2017-01-01","Mamma","Auto apdrošināšana",{"v":74,"d":"74 EUR"}]
[null,"2017-01-15","Mamma","Veselības apdrošināšana",{"v":70,"d":"70 EUR"}]
[null,"2017-02-02","Mamma","Mājokļa apdrošināšana",{"v":235,"d":"235 EUR"}]

{"sheet":"16","index":16,"n_rows":121,"n_cols":7,"rows_kept":121}
["Varat arī sakļaut vai izvērst visu otro rindas lauks, lai padarītu rakurstabula vēl vienkāršāku."]
["Ņemiet vērā"]
["Atlasiet rakurstabulas datu diapazonu no šūnas F7 līdz šūnai G31, pēc tam nospiediet taustiņu kombināciju ALT+JZ > S, lai sakļautu visu grupu. Taustiņu kombinācija ALT+JZ > V paplašinās visu grupu."]
["Lai turpinātu šo apmācību, nospiediet taustiņu kombināciju CTRL+PAGE DOWN. Lai pārietu uz iepriekšējo lapu, nospiediet taustiņu kombināciju CTRL+PAGE UP."]
[]
[{"$nulls":5},{"$f":"IF(AND($F$9=\"Daina\",$G$9=935),\"Īstajā vietā!\",\" \")","v":" "}]
[{"$nulls":5},"Rindu etiķetes","Summa no Summa"]
[{"$nulls":5},"Tētis",{"v":2000,"d":"2,000 EUR"}]
[{"$nulls":5},"Lidojums",{"v":500,"d":"500 EUR"}]
[{"$nulls":5},"Nodokļi",{"v":500,"d":"500 EUR"}]
[{"$nulls":5},"Sports",{"v":1000,"d":"1,000 EUR"}]
[{"$nulls":5},"Daina",{"v":935,"d":"935 EUR"}]
[{"$nulls":5},"Apģērbs",{"v":125,"d":"125 EUR"}]
[{"$nulls":5},"Autostāvvieta",{"v":20,"d":"20 EUR"}]
[{"$nulls":5},"Biļetes",{"v":125,"d":"125 EUR"}]
[{"$nulls":5},"Elektronika",{"v":125,"d":"125 EUR"}]
[{"$nulls":5},"Ēšana",{"v":20,"d":"20 EUR"}]
[{"$nulls":5},"Grāmatas",{"v":250,"d":"250 EUR"}]
[{"$nulls":5},"Mūzika",{"v":20,"d":"20 EUR"}]
[{"$nulls":5},"Mūzikas nodarbības",{"v":250,"d":"250 EUR"}]
[{"$nulls":5},"Mamma",{"v":1427,"d":"1,427 EUR"}]
[{"$nulls":5},"Auto apdrošināšana",{"v":74,"d":"74 EUR"}]
[{"$nulls":5},"Degviela",{"v":74,"d":"74 EUR"}]
[{"$nulls":5},"Elektrība",{"v":70,"d":"70 EUR"}]
[{"$nulls":5},"Kluba ieejas maksa",{"v":125,"d":"125 EUR"}]
[{"$nulls":5},"Mājokļa apdrošināšana",{"v":235,"d":"235 EUR"}]
[{"$nulls":5},"Medikamenti",{"v":74,"d":"74 EUR"}]
[{"$nulls":5},"Pārtika",{"v":470,"d":"470 EUR"}]
[{"$nulls":5},"Veselības apdrošināšana",{"v":70,"d":"70 EUR"}]
[{"$nulls":5},"Zobārsts",{"v":235,"d":"235 EUR"}]
[{"$nulls":5},"Gala summa",{"v":4362,"d":"4,362 EUR"}]
{"$rows_empty":68}
[null,"Datums","Pircējs","Tips","Summa"]
[null,"2017-01-17","Tētis","Sports",{"v":1000,"d":"1,000 EUR"}]
[null,"2017-01-17","Tētis","Lidojums",{"v":500,"d":"500 EUR"}]
[null,"2017-01-17","Tētis","Nodokļi",{"v":500,"d":"500 EUR"}]
[null,"2017-02-20","Daina","Mūzika",{"v":20,"d":"20 EUR"}]
[null,"2017-02-25","Daina","Biļetes",{"v":125,"d":"125 EUR"}]
[null,"2017-01-21","Daina","Grāmatas",{"v":250,"d":"250 EUR"}]
[null,"2017-02-20","Daina","Ēšana",{"v":20,"d":"20 EUR"}]
[null,"2017-02-25","Daina","Apģērbs",{"v":125,"d":"125 EUR"}]
[null,"2017-01-21","Daina","Mūzikas nodarbības",{"v":250,"d":"250 EUR"}]
[null,"2017-02-20","Daina","Autostāvvieta",{"v":20,"d":"20 EUR"}]
[null,"2017-02-25","Daina","Elektronika",{"v":125,"d":"125 EUR"}]
[null,"2017-01-01","Mamma","Degviela",{"v":74,"d":"74 EUR"}]
[null,"2017-01-15","Mamma","Pārtika",{"v":235,"d":"235 EUR"}]
[null,"2017-01-21","Mamma","Kluba ieejas maksa",{"v":125,"d":"125 EUR"}]
[null,"2017-02-02","Mamma","Pārtika",{"v":235,"d":"235 EUR"}]
[null,"2017-01-01","Mamma","Medikamenti",{"v":74,"d":"74 EUR"}]
[null,"2017-01-15","Mamma","Elektrība",{"v":70,"d":"70 EUR"}]
[null,"2017-02-02","Mamma","Zobārsts",{"v":235,"d":"235 EUR"}]
[null,"2017-01-01","Mamma","Auto apdrošināšana",{"v":74,"d":"74 EUR"}]
[null,"2017-01-15","Mamma","Veselības apdrošināšana",{"v":70,"d":"70 EUR"}]
[null,"2017-02-02","Mamma","Mājokļa apdrošināšana",{"v":235,"d":"235 EUR"}]

{"sheet":"17","index":17,"n_rows":107,"n_cols":13,"rows_kept":107}
["Jūs varat izmantot vairākus kolonnas laukus. Arī tos iespējams sakļaut vai izvērst."]
["Šajā piemērā rakurstabula ir diapazonā no šūnas B13 līdz šūnai M19. Šajā gadījumā mums ir kategorija Tips kolonnas sadaļā, kurā ietverti vienumi Pārtika un Komunālie pakalpojumi."]
["IZMĒĢINIET ŠO\nAtlasiet Pārtika šūnā C14 un nospiediet taustiņu kombināciju ALT+JZ > S, lai sakļautu visu lauku. Ar taustiņu kombināciju ALT+JZ > V tas tiks izvērsts."]
["Lai turpinātu šo apmācību, nospiediet taustiņu kombināciju CTRL+PAGE DOWN. Lai pārietu uz iepriekšējo lapu, nospiediet taustiņu kombināciju CTRL+PAGE UP."]
{"$rows_empty":7}
[null,null,{"$f":"IF(AND($C$16=398,$D$15=\"Jan\"),\"Darīts!\",\" \")","v":" "}]
[null,"Summa no Summa","Kolonnu etiķetes"]
[null,null,"Pārtika",{"$nulls":3},"Pārtika Kopsumma","Komunālie pakalpojumi",{"$nulls":3},"Komunālie pakalpojumi Kopsumma","Gala summa"]
[null,"Rindu etiķetes","Jan","Feb","Mar","Apr",null,"Jan","Feb","Mar","Apr"]
[null,"Daina",{"v":74,"d":"74 EUR"},{"v":74,"d":"74 EUR"},{"v":125,"d":"125 EUR"},{"v":125,"d":"125 EUR"},{"v":398,"d":"398 EUR"},{"$nulls":5},{"v":398,"d":"398 EUR"}]
[null,"Tētis",{"v":235,"d":"235 EUR"},{"v":235,"d":"235 EUR"},{"v":235,"d":"235 EUR"},{"v":74,"d":"74 EUR"},{"v":779,"d":"779 EUR"},{"$nulls":5},{"v":779,"d":"779 EUR"}]
[null,"Mamma",{"$nulls":5},{"v":1000,"d":"1,000 EUR"},{"v":1000,"d":"1,000 EUR"},{"v":20,"d":"20 EUR"},{"v":70,"d":"70 EUR"},{"v":2090,"d":"2,090 EUR"},{"v":2090,"d":"2,090 EUR"}]
[null,"Gala summa",{"v":309,"d":"309 EUR"},{"v":309,"d":"309 EUR"},{"v":360,"d":"360 EUR"},{"v":199,"d":"199 EUR"},{"v":1177,"d":"1,177 EUR"},{"v":1000,"d":"1,000 EUR"},{"v":1000,"d":"1,000 EUR"},{"v":20,"d":"20 EUR"},{"v":70,"d":"70 EUR"},{"v":2090,"d":"2,090 EUR"},{"v":3267,"d":"3,267 EUR"}]
{"$rows_empty":75}
[null,"Mēnesis","Pircējs","Tips","Summa"]
[null,"Jan","Daina","Pārtika",{"v":74,"d":"74 EUR"}]
[null,"Jan","Tētis","Pārtika",{"v":235,"d":"235 EUR"}]
[null,"Jan","Mamma","Komunālie pakalpojumi",{"v":1000,"d":"1,000 EUR"}]
[null,"Feb","Daina","Pārtika",{"v":74,"d":"74 EUR"}]
[null,"Feb","Tētis","Pārtika",{"v":235,"d":"235 EUR"}]
[null,"Feb","Mamma","Komunālie pakalpojumi",{"v":1000,"d":"1,000 EUR"}]
[null,"Mar","Daina","Pārtika",{"v":125,"d":"125 EUR"}]
[null,"Mar","Tētis","Pārtika",{"v":235,"d":"235 EUR"}]
[null,"Mar","Mamma","Komunālie pakalpojumi",{"v":20,"d":"20 EUR"}]
[null,"Apr","Daina","Pārtika",{"v":125,"d":"125 EUR"}]
[null,"Apr","Tētis","Pārtika",{"v":74,"d":"74 EUR"}]
[null,"Apr","Mamma","Komunālie pakalpojumi",{"v":70,"d":"70 EUR"}]

{"sheet":"18","index":18,"n_rows":146,"n_cols":5,"rows_kept":146}
["Kas jāatceras: Ja vēlaties detalizētu informāciju, iespējams pievienot vairāk rindu laukus vai kolonnu laukus. Šajā piemērā ir trīs rindu lauki."]
["Šajā piemērā rakurstabula diapazons ir no šūnas D8 līdz šūnai E29, un tās kolonnā D ir lauki Gadalaiks, Pircējs un Tips, bet kolonnā E ir Summa no Summa,."]
["EKSPERTU PADOMS\nJums nav jāpievieno liels skaits lauku tikai tāpēc, ka tas ir iespējams. Šajā piemērā tas izskatās labi. Taču dažreiz pārāk liels skaits lauku ar visām atkāpēm var padarīt rakurstabula pārāk sarežģītu uztverei. "]
["Lai turpinātu šo apmācību, nospiediet taustiņu kombināciju CTRL+PAGE DOWN. Lai pārietu uz iepriekšējo lapu, nospiediet taustiņu kombināciju CTRL+PAGE UP."]
[]
[]
[]
[{"$nulls":3},"Rindu etiķetes","Summa no Summa"]
[{"$nulls":3},"Rudens",{"v":5425,"d":"5,425 EUR"}]
[{"$nulls":3},"Mamma",{"v":5425,"d":"5,425 EUR"}]
[{"$nulls":3},"Apdrošināšana",{"v":1272,"d":"1,272 EUR"}]
[{"$nulls":3},"Īres maksa",{"v":3220,"d":"3,220 EUR"}]
[{"$nulls":3},"Komunālie pakalpojumi",{"v":933,"d":"933 EUR"}]
[{"$nulls":3},"Pavasaris",{"v":4760,"d":"4,760 EUR"}]
[{"$nulls":3},"Tētis",{"v":4760,"d":"4,760 EUR"}]
[{"$nulls":3},"Apdrošināšana",{"v":1040,"d":"1,040 EUR"}]
[{"$nulls":3},"Īres maksa",{"v":2400,"d":"2,400 EUR"}]
[{"$nulls":3},"Komunālie pakalpojumi",{"v":1320,"d":"1,320 EUR"}]
[{"$nulls":3},"Vasara",{"v":3473,"d":"3,473 EUR"}]
[{"$nulls":3},"Mamma",{"v":3473,"d":"3,473 EUR"}]
[{"$nulls":3},"Apdrošināšana",{"v":1080,"d":"1,080 EUR"}]
[{"$nulls":3},"Īres maksa",{"v":1260,"d":"1,260 EUR"}]
[{"$nulls":3},"Komunālie pakalpojumi",{"v":1133,"d":"1,133 EUR"}]
[{"$nulls":3},"Ziema",{"v":4100,"d":"4,100 EUR"}]
[{"$nulls":3},"Tētis",{"v":4100,"d":"4,100 EUR"}]
[{"$nulls":3},"Apdrošināšana",{"v":1030,"d":"1,030 EUR"}]
[{"$nulls":3},"Īres maksa",{"v":1420,"d":"1,420 EUR"}]
[{"$nulls":3},"Komunālie pakalpojumi",{"v":1650,"d":"1,650 EUR"}]
[{"$nulls":3},"Gala summa",{"v":17758,"d":"17,758 EUR"}]
{"$rows_empty":68}
[null,"Pircējs","Gadalaiks","Tips","Summa"]
[null,"Tētis","Ziema","Apdrošināšana",{"v":300,"d":"300 EUR"}]
[null,"Tētis","Ziema","Īres maksa",{"v":200,"d":"200 EUR"}]
[null,"Tētis","Ziema","Komunālie pakalpojumi",{"v":400,"d":"400 EUR"}]
[null,"Tētis","Ziema","Apdrošināšana",{"v":300,"d":"300 EUR"}]
[null,"Tētis","Ziema","Īres maksa",{"v":800,"d":"800 EUR"}]
[null,"Tētis","Ziema","Komunālie pakalpojumi",{"v":400,"d":"400 EUR"}]
[null,"Tētis","Ziema","Apdrošināšana",{"v":200,"d":"200 EUR"}]
[null,"Tētis","Ziema","Īres maksa",{"v":300,"d":"300 EUR"}]
[null,"Tētis","Ziema","Komunālie pakalpojumi",{"v":450,"d":"450 EUR"}]
[null,"Tētis","Ziema","Apdrošināšana",{"v":230,"d":"230 EUR"}]
[null,"Tētis","Ziema","Īres maksa",{"v":120,"d":"120 EUR"}]
[null,"Tētis","Ziema","Komunālie pakalpojumi",{"v":400,"d":"400 EUR"}]
[null,"Tētis","Pavasaris","Apdrošināšana",{"v":210,"d":"210 EUR"}]
[null,"Tētis","Pavasaris","Īres maksa",{"v":300,"d":"300 EUR"}]
[null,"Tētis","Pavasaris","Komunālie pakalpojumi",{"v":400,"d":"400 EUR"}]
[null,"Tētis","Pavasaris","Apdrošināšana",{"v":230,"d":"230 EUR"}]
[null,"Tētis","Pavasaris","Īres maksa",{"v":900,"d":"900 EUR"}]
[null,"Tētis","Pavasaris","Komunālie pakalpojumi",{"v":300,"d":"300 EUR"}]
[null,"Tētis","Pavasaris","Apdrošināšana",{"v":200,"d":"200 EUR"}]
[null,"Tētis","Pavasaris","Īres maksa",{"v":1000,"d":"1,000 EUR"}]
[null,"Tētis","Pavasaris","Komunālie pakalpojumi",{"v":220,"d":"220 EUR"}]
[null,"Tētis","Pavasaris","Apdrošināšana",{"v":400,"d":"400 EUR"}]
[null,"Tētis","Pavasaris","Īres maksa",{"v":200,"d":"200 EUR"}]
[null,"Tētis","Pavasaris","Komunālie pakalpojumi",{"v":400,"d":"400 EUR"}]
[null,"Mamma","Vasara","Apdrošināšana",{"v":100,"d":"100 EUR"}]
[null,"Mamma","Vasara","Īres maksa",{"v":30,"d":"30 EUR"}]
[null,"Mamma","Vasara","Komunālie pakalpojumi",{"v":123,"d":"123 EUR"}]
[null,"Mamma","Vasara","Apdrošināšana",{"v":300,"d":"300 EUR"}]
[null,"Mamma","Vasara","Īres maksa",{"v":350,"d":"350 EUR"}]
[null,"Mamma","Vasara","Komunālie pakalpojumi",{"v":230,"d":"230 EUR"}]
[null,"Mamma","Vasara","Apdrošināšana",{"v":120,"d":"120 EUR"}]
[null,"Mamma","Vasara","Īres maksa",{"v":640,"d":"640 EUR"}]
[null,"Mamma","Vasara","Komunālie pakalpojumi",{"v":530,"d":"530 EUR"}]
[null,"Mamma","Vasara","Apdrošināšana",{"v":560,"d":"560 EUR"}]
[null,"Mamma","Vasara","Īres maksa",{"v":240,"d":"240 EUR"}]
[null,"Mamma","Vasara","Komunālie pakalpojumi",{"v":250,"d":"250 EUR"}]
[null,"Mamma","Rudens","Apdrošināšana",{"v":62,"d":"62 EUR"}]
[null,"Mamma","Rudens","Īres maksa",{"v":600,"d":"600 EUR"}]
[null,"Mamma","Rudens","Komunālie pakalpojumi",{"v":340,"d":"340 EUR"}]
[null,"Mamma","Rudens","Apdrošināšana",{"v":205,"d":"205 EUR"}]
[null,"Mamma","Rudens","Īres maksa",{"v":500,"d":"500 EUR"}]
[null,"Mamma","Rudens","Komunālie pakalpojumi",{"v":403,"d":"403 EUR"}]
[null,"Mamma","Rudens","Apdrošināšana",{"v":503,"d":"503 EUR"}]
[null,"Mamma","Rudens","Īres maksa",{"v":2000,"d":"2,000 EUR"}]
[null,"Mamma","Rudens","Komunālie pakalpojumi",{"v":140,"d":"140 EUR"}]
[null,"Mamma","Rudens","Apdrošināšana",{"v":502,"d":"502 EUR"}]
[null,"Mamma","Rudens","Īres maksa",{"v":120,"d":"120 EUR"}]
[null,"Mamma","Rudens","Komunālie pakalpojumi",{"v":50,"d":"50 EUR"}]

{"sheet":"19","index":19,"n_rows":55,"n_cols":5,"rows_kept":55}
["Vai esat gatavs praktiskai nodarbībai? Izmantojiet iespēju pārskatīt datus no šūnas B7 līdz šūnai E55. Kad esat gatavs, dodieties uz nākamo lapu un praksē izmēģiniet iegūtās zināšanas. "]
["Nav jāpārskata visas datu rindas. Vienkārši pārskatiet lauku nosaukumus 7. rindā. Jūs ar tiem strādāsit nākamajā lapā. "]
["Lai turpinātu šo apmācību, nospiediet taustiņu kombināciju CTRL+PAGE DOWN. Lai pārietu uz iepriekšējo lapu, nospiediet taustiņu kombināciju CTRL+PAGE UP."]
[]
[]
[]
[null,"Gadalaiks","Pārdevējs","Produkts","Pārdotās vienības"]
[null,"Ziema","Vizma","Apelsīni",300]
[null,"Ziema","Jānis","Greipfrūti",200]
[null,"Ziema","Dāvis","Āboli",400]
[null,"Ziema","Vizma","Banāni",300]
[null,"Ziema","Jānis","Apelsīni",800]
[null,"Ziema","Dāvis","Greipfrūti",400]
[null,"Ziema","Vizma","Āboli",200]
[null,"Ziema","Jānis","Banāni",300]
[null,"Ziema","Dāvis","Apelsīni",450]
[null,"Ziema","Vizma","Greipfrūti",230]
[null,"Ziema","Jānis","Āboli",120]
[null,"Ziema","Dāvis","Banāni",400]
[null,"Pavasaris","Vizma","Bietes",210]
[null,"Pavasaris","Jānis","Kartupeļi",300]
[null,"Pavasaris","Dāvis","Salāti",400]
[null,"Pavasaris","Vizma","Redīsi",230]
[null,"Pavasaris","Jānis","Bietes",900]
[null,"Pavasaris","Dāvis","Kartupeļi",300]
[null,"Pavasaris","Vizma","Salāti",200]
[null,"Pavasaris","Jānis","Redīsi",{"v":1000,"d":"1,000"}]
[null,"Pavasaris","Dāvis","Bietes",220]
[null,"Pavasaris","Vizma","Kartupeļi",400]
[null,"Pavasaris","Jānis","Salāti",200]
[null,"Pavasaris","Dāvis","Redīsi",400]
[null,"Vasara","Vizma","Mellenes",100]
[null,"Vasara","Jānis","Zemenes",30]
[null,"Vasara","Dāvis","Vīnogas",123]
[null,"Vasara","Vizma","Ķirbji",300]
[null,"Vasara","Jānis","Mellenes",350]
[null,"Vasara","Dāvis","Zemenes",230]
[null,"Vasara","Vizma","Vīnogas",120]
[null,"Vasara","Jānis","Ķirbji",640]
[null,"Vasara","Dāvis","Mellenes",530]
[null,"Vasara","Vizma","Zemenes",560]
[null,"Vasara","Jānis","Vīnogas",240]
[null,"Vasara","Dāvis","Ķirbji",250]
[null,"Rudens","Vizma","Kabači",62]
[null,"Rudens","Jānis","Cukīni",600]
[null,"Rudens","Dāvis","Āboli",340]
[null,"Rudens","Vizma","Apelsīni",205]
[null,"Rudens","Jānis","Kabači",500]
[null,"Rudens","Dāvis","Cukīni",403]
[null,"Rudens","Vizma","Āboli",503]
[null,"Rudens","Jānis","Apelsīni",{"v":2000,"d":"2,000"}]
[null,"Rudens","Dāvis","Kabači",140]
[null,"Rudens","Vizma","Cukīni",502]
[null,"Rudens","Jānis","Āboli",120]
[null,"Rudens","Dāvis","Apelsīni",50]

{"sheet":"20","index":20,"n_rows":17,"n_cols":8,"rows_kept":17}
["1. Šajā piemērā esošais rakurstabulas apgabals atrodas šūnās no B12 līdz C17. Pārejiet uz kādu no šīm šūnām. \n\n"]
["2. Nospiediet taustiņu kombināciju ALT un JZ, L1, lai atvērtu rakurstabulas lauki sarakstu. Fokuss pēc noklusējuma atradīsies meklēt tekstlodziņā: “ierakstiet meklējamos vārdus” rediģēšanai. Nerakstiet neko, tikai vienu reizi nospiediet tabulēšanas taustiņu. Piezīme. Ja lauku saraksts netiek atvērts, vēlreiz nospiediet taustiņu kombināciju ALT+JZ, L1."]
["3. Spiežot bultiņas, pārvietojieties uz lauku Pārdevējs. Lai lauku Pārdevējs pievienotu apgabalā Rindas, nospiediet atstarpes taustiņu. Ja vēlaties parādīt informāciju par pārdevējs kolonnas apgabalā, izmantojiet tabulēšanas taustiņus, lai pārietu uz pārdevējs lauku rindas sadaļā, pēc tam nospiediet atstarpes taustiņu un atlasiet \"Pārvietot uz kolonnu etiķetēm\". Nospiediet taustiņu ESC, lai izietu no rakurstabulas lauki rūts. "]
["4. Uzziniet, kurš pārdeva visvairāk vienību rudenī, pēc tam veiciet atlasi šūnā H8. "]
["Lai turpinātu šo apmācību, nospiediet taustiņu kombināciju CTRL+PAGE DOWN. Lai pārietu uz iepriekšējo lapu, nospiediet taustiņu kombināciju CTRL+PAGE UP."]
[]
[{"$nulls":7},"Izvēlieties vienu:"]
[]
[{"$nulls":7},{"$f":"IF($H$8=\"Jānis\",\"Taisnība!\",IF($H$8=\"Dāvis\",\"Mēģiniet vēlreiz...\",IF($H$8=\"Vizma\",\"Nepareizi...\",IF($H$8=\" \",\" \",\" \"))))","v":" "}]
[]
[]
[null,"Rindu etiķetes","Summa no Pārdotās vienības"]
[null,"Rudens",{"v":5425,"d":"5,425"}]
[null,"Pavasaris",{"v":4760,"d":"4,760"}]
[null,"Vasara",{"v":3473,"d":"3,473"}]
[null,"Ziema",{"v":4100,"d":"4,100"}]
[null,"Gala summa",{"v":17758,"d":"17,758"}]

{"sheet":"21","index":21,"n_rows":14,"n_cols":10,"rows_kept":14}
["1. Noklikšķiniet šūnā B13, lai aktivizētu rakurstabula ar nosaukumu \"Summa no Pārdotās vienības\".\n\n"]
["2. Nospiediet taustiņu kombināciju ALT un JZ, L1, lai atvērtu rakurstabulas lauki sarakstu. Fokuss pēc noklusējuma atradīsies meklēt tekstlodziņā: “ierakstiet meklējamos vārdus” rediģēšanai. Nerakstiet neko, tikai vienu reizi nospiediet tabulēšanas taustiņu. Piezīme. Ja lauku saraksts netiek atvērts, vēlreiz nospiediet taustiņu kombināciju ALT+JZ, L1."]
["3. Izmantojiet bulttaustiņus un atstarpes taustiņu, lai izvērstu piemēru vertikālā rakurstabula, kurā gadalaiks ir kreisajā pusē un pārdevējs ar atkāpi ir zem gadalaikiem. Nospiediet taustiņu ESC, lai izietu no rakurstabulas lauki rūts. "]
["Lai turpinātu šo apmācību, nospiediet taustiņu kombināciju CTRL+PAGE DOWN. Lai pārietu uz iepriekšējo lapu, nospiediet taustiņu kombināciju CTRL+PAGE UP."]
[{"$nulls":9},{"$f":"IF(AND(B$14=\"Pavasaris\",$C$17=1040),\"Lieliski! Jūs ievietojāt otru\",\" \")","v":" "}]
[{"$nulls":9},{"$f":"IF(AND(B$14=\"Pavasaris\",$C$17=1040),\"rindas lauku. Ritiniet leju\",\" \")","v":" "}]
[{"$nulls":9},{"$f":"IF(AND(B$14=\"Pavasaris\",$C$17=1040),\"un noklikšķiniet uz Tālāk.\",\" \")","v":" "}]
[]
[]
[]
[]
[]
[null,"Summa no Pārdotās vienības"]
[null,{"v":17758,"d":"17,758"}]

{"sheet":"22","index":22,"n_rows":14,"n_cols":10,"rows_kept":14}
["1. Noklikšķiniet šūnā B13, lai aktivizētu rakurstabula ar nosaukumu \"Summa no Pārdotās vienības\"."]
["2. Nospiediet taustiņu kombināciju ALT un JZ, L1, lai atvērtu rakurstabulas lauki sarakstu. Fokuss pēc noklusējuma atradīsies meklēt tekstlodziņā: “ierakstiet meklējamos vārdus” rediģēšanai. Nerakstiet neko, tikai vienu reizi nospiediet tabulēšanas taustiņu. Piezīme. Ja lauku saraksts netiek atvērts, vēlreiz nospiediet taustiņu kombināciju ALT+JZ, L1."]
["3. Izmantojiet bulttaustiņus un atstarpes taustiņu, lai mainītu piemēru, un tajā būtu redzams katrs produkts atsevišķā rindā un katrs gadalaiks atsevišķā kolonnā."]
["Lai turpinātu šo apmācību, nospiediet taustiņu kombināciju CTRL+PAGE DOWN. Lai pārietu uz iepriekšējo lapu, nospiediet taustiņu kombināciju CTRL+PAGE UP.",{"$nulls":8},{"$f":"IF(AND($B$15=\"Apelsīni\",$G$28=820),\"Lieliski! Jūs ievietojāt\",\" \")","v":" "}]
[{"$nulls":9},{"$f":"IF(AND($B$15=\"Apelsīni\",$G$28=820),\"rindas lauku pa kreisi un,\",\" \")","v":" "}]
[{"$nulls":9},{"$f":"IF(AND($B$15=\"Apelsīni\",$G$28=820),\"kolonnas lauku ar četrām\",\" \")","v":" "}]
[{"$nulls":9},{"$f":"IF(AND($B$15=\"Apelsīni\",$G$28=820),\"jaunām kolonnām. Ritiniet uz\",\" \")","v":" "}]
[{"$nulls":9},{"$f":"IF(AND($B$15=\"Apelsīni\",$G$28=820),\"leju un noklikšķiniet uz Tālāk...\",\" \")","v":" "}]
[]
[]
[]
[]
[null,"Summa no Pārdotās vienības"]
[null,{"v":17758,"d":"17,758"}]

{"sheet":"23","index":23,"n_rows":16,"n_cols":18,"rows_kept":16}
["1. Noklikšķiniet šūnā B13, lai aktivizētu rakurstabula ar nosaukumu \"Summa no Pārdotās vienības\".\n\n"]
["2. Nospiediet taustiņu kombināciju ALT un JZ, L1, lai atvērtu rakurstabulas lauki sarakstu. Fokuss pēc noklusējuma atradīsies meklēt tekstlodziņā: “ierakstiet meklējamos vārdus” rediģēšanai. Nerakstiet neko, tikai vienu reizi nospiediet tabulēšanas taustiņu. Piezīme. Ja lauku saraksts netiek atvērts, vēlreiz nospiediet taustiņu kombināciju ALT+JZ, L1."]
["3. Izmantojiet tabulēšanas taustiņu, bulttaustiņus un atstarpes taustiņu, lai mainītu piemēru, un tajā būtu redzami pārdevēji pa kreisi un gadalaiki ar atkāpi zem pārdevējiem."]
["Lai turpinātu šo apmācību, nospiediet taustiņu kombināciju CTRL+PAGE DOWN. Lai pārietu uz iepriekšējo lapu, nospiediet taustiņu kombināciju CTRL+PAGE UP."]
[{"$nulls":9},{"$f":"IF(AND($B$14=\"Dāvis\",$C$14=5036),\"Lieliski! Tagad datus ir\",\" \")","v":" "}]
[{"$nulls":9},{"$f":"IF(AND($B$14=\"Dāvis\",$C$14=5036),\"vieglāk izlasīt. Ritiniet uz\",\" \")","v":" "}]
[{"$nulls":9},{"$f":"IF(AND($B$14=\"Dāvis\",$C$14=5036),\"leju un noklikšķiniet uz Tālāk...\",\" \")","v":" "}]
[]
[]
[]
[]
[]
[null,null,"Kolonnu etiķetes"]
[null,null,"Dāvis",{"$nulls":3},"Dāvis Kopsumma","Jānis",{"$nulls":3},"Jānis Kopsumma","Vizma",{"$nulls":3},"Vizma Kopsumma","Gala summa"]
[null,null,"Rudens","Pavasaris","Vasara","Ziema",null,"Rudens","Pavasaris","Vasara","Ziema",null,"Rudens","Pavasaris","Vasara","Ziema"]
[null,"Summa no Pārdotās vienības",933,{"v":1320,"d":"1,320"},{"v":1133,"d":"1,133"},{"v":1650,"d":"1,650"},{"v":5036,"d":"5,036"},{"v":3220,"d":"3,220"},{"v":2400,"d":"2,400"},{"v":1260,"d":"1,260"},{"v":1420,"d":"1,420"},{"v":8300,"d":"8,300"},{"v":1272,"d":"1,272"},{"v":1040,"d":"1,040"},{"v":1080,"d":"1,080"},{"v":1030,"d":"1,030"},{"v":4422,"d":"4,422"},{"v":17758,"d":"17,758"}]

{"sheet":"24","index":24,"n_rows":14,"n_cols":9,"rows_kept":14}
["1. Noklikšķiniet šūnā B13, lai aktivizētu rakurstabula ar nosaukumu \"Summa no Pārdotās vienības\"."]
["2. Nospiediet taustiņu kombināciju ALT un JZ, L1, lai atvērtu rakurstabulas lauki sarakstu. Fokuss pēc noklusējuma atradīsies meklēt tekstlodziņā: “ierakstiet meklējamos vārdus” rediģēšanai. Nerakstiet neko, tikai vienu reizi nospiediet tabulēšanas taustiņu. Piezīme. Ja lauku saraksts netiek atvērts, vēlreiz nospiediet taustiņu kombināciju ALT+JZ, L1."]
["3. Izmantojiet tabulēšanas taustiņu, bulttaustiņus un atstarpes taustiņu, lai mainītu piemēru, un katram pārdevējam būtu savs kolonnas lauks ar gadalaikiem kreisajā pusē un produktiem ar atkāpi zem pārdevējiem."]
["4. Atlasiet šūnu I9 un izvēlieties, cik daudz greipfrūtu Dāvis pārdeva ziemā."]
["Lai turpinātu šo apmācību, nospiediet taustiņu kombināciju CTRL+PAGE DOWN. Lai pārietu uz iepriekšējo lapu, nospiediet taustiņu kombināciju CTRL+PAGE UP."]
[]
[]
[{"$nulls":8},"Izvēlieties vienu:"]
[]
[{"$nulls":8},{"$f":"IF($I$9=400,\"Taisnība!\",IF($I$9=530,\"Mēģiniet vēlreiz...\",IF($I$9=123,\"Nepareizi...\",\" \")))","v":" "}]
[]
[]
[null,"Summa no Pārdotās vienības"]
[null,{"v":17758,"d":"17,758"}]

{"sheet":"Papildinformācija","index":25,"n_rows":8,"n_cols":1,"rows_kept":8}
["Labi pastrādāts. Vai rakurstabulas nav lieliskas?"]
["Taču mēs iesakām turpināt. Varat uzzināt vēl daudz ko citu..."]
["Vēl par rakurstabulām\nIzlasot šo noderīgo rakstu par rakurstabulām, uzzināsiet vēl daudz ko citu."]
["Par atsvaidzināšanu\nIzlasiet šo svarīgo rakstu par to, kā atsvaidzināt rakurstabulu. "]
["Kopiena\nSazinieties ar citiem Excel entuziastiem. Jūs varat viens otram palīdzēt."]
[]
[]
[" "]